{"text_format":"1","workbook":"xlsx","n_sheets":8,"sheets":["操作方法","畑の準備","梅雨対策","大雨対策","秋雨対策","図・選択肢","診　断","かん水"],"not_rendered":{"charts":0,"images":22,"macros":1,"external_links":1,"defined_names":54,"comments":0,"pivot_tables":0},"unopened":[],"bounds":{"document_bytes":16777216,"sheet_cells":100000,"rows_first":2000,"rows_last":500,"rows_between":2000,"halvings":0,"cell_chars":16384,"cell_head_chars":4096},"cells_cut":0,"cells_raw":0,"read":"whole","date_system":"1900"}

{"sheet":"操作方法","index":0,"n_rows":106,"n_cols":7,"rows_kept":106,"cut":false,"hidden":false,"merged":[[73,0,86,8],[105,0,106,4],[2,0,6,8],[8,0,30,8],[32,0,41,8],[55,0,60,8],[62,0,71,8]]}
["排水対策診断システムの操作方法",null,null,null,null,null,"京都府南丹農業改良普及センター"]
[]
["　このエクセルシステムは、自分の畑の排水対策の実施状況を、選択肢を選んで入力し、その対策が十分かどうか評価・診断できます。\n　実施する排水対策は、項目ごとに図や説明が表示され、対策技術の学習にも役立ちます。"]
[]
[]
[]
[]
[]
["1　実施対策の入力\n　栽培前の「畑の準備」と栽培中の「梅雨対策」について、それぞれ別のシートで入力・診断できます。\n　まず、「畑の準備」の実施対策の項目（額縁溝、法面下の溝など）のすぐ右横にある〇印をクリックします。図や説明が表示され、下には対策の選択肢があるので、その番号（１～3又は4）を水色の欄に入力します。\n 図は、畑を上から見た図で、その余白に説明・イラストが書かれています。"]
[]
[]
[]
[]
[]
[]
[]
[]
[]
[]
[]
[]
[]
[]
[]
[]
[]
[]
[]
[]
[]
[]
[]
["２　入力結果の診断\n　診断を見るには、表の右下の「診断表示」欄をクリックしてチェックを入れます。消すときは、もう一度クリックしてチェックを消します。\n　各項目の対策内容を入力すれば右側にポイント数字が表示されますが、それをもとに診断コメントが作成されます。\n"]
[]
[]
[]
[]
[]
[]
[]
[]
[]
[]
[]
[]
[]
[]
[]
[]
[]
[]
[]
[]
[]
[]
["３　「畑の準備」から「梅雨対策」「大雨対策」へ\n　別のシートで入力するので、表の左「梅雨対策」「大雨対策」のボタンをクリックするか、画面下の「梅雨対策」「大雨対策」タブを選んで、シートを切り替えます。「畑の準備」に戻る場合も同様です。"]
[]
[]
[]
[]
[]
[]
["４　活用法\n　畑の準備の計画段階なら、対策不十分と診断されたら、もう少しできそうな項目を再入力して、満足できる排水対策をシミュレーションすることができます。\n　条件の違う複数の畑で栽培する場合、ファイルを「名前をつけて保存」すれば、「梅雨対策」もそれぞれの畑で続きに入力でき、その後の実際の排水状況や生育と比較できます。"]
[]
[]
[]
[]
[]
[]
[]
[]
[]
[]
["５　大雨対策\n　入力方法は、畑の準備、梅雨対策と少し異なります。表の右のイラストの内容を実施したら図の下の水色欄にチェックします。イラストは下方へ続くので、画面をスクロールします。\n　３つの項目に分け、「排水溝のメンテナンス」「排水口の改善」の項目では実施した対策に☑を入れます。「『畑の準備』で改善、改善余地ある事項」の項目では、畑の準備で不十分だった項目が表示されるので、その改善を行ったら☑を入れます。\n\n"]
[]
[]
[]
[]
[]
[]
[]
[]
[]
[]
[]
[]
[]
[]
[]
[]
[]
[]
[]
[]
[]
[]
[]
[]
[]
[]
[]
[]
[]
[]
[]
["　診断は、表の下に表示されます。"]

{"sheet":"畑の準備","index":1,"n_rows":23,"n_cols":24,"rows_kept":23,"cut":false,"hidden":false,"merged":[[6,9,7,9],[8,9,9,9],[6,4,7,5],[8,4,9,5],[6,7,7,7],[8,7,9,7],[6,8,7,8],[8,8,9,8],[2,4,3,6],[4,4,5,5],[4,7,5,7],[4,8,5,8],[4,9,5,9],[10,4,11,5],[12,4,13,5],[14,4,15,5],[16,4,17,5],[18,4,19,5],[16,8,17,8],[18,8,19,8],[10,7,11,7],[12,7,13,7],[14,7,15,7],[16,7,17,7],[18,7,19,7],[17,10,18,10],[21,10,22,10],[5,0,6,1],[9,0,10,1],[13,0,14,1],[17,0,18,1],[3,2,19,2],[2,9,3,9],[10,9,11,9],[12,9,13,9],[14,9,15,9],[16,9,17,9],[18,9,19,9],[10,8,11,8],[12,8,13,8],[14,8,15,8]]}
["排水対策診断システム",null,null,null,null,null,null,"畑の準備",null,null,null,null,null,null,null,null,null,null,null,"京都府南丹農業改良普及センター",null,null,null,250512]
[null,null,null,1," ○をｸﾘｯｸで説明表示、図の下の選択肢番号を水色欄に入力してください",null,null,null,null,null,null,null,null,null,{"$f":"IF(OR($D$2=0,$D$2=9),\"\",$D$2+10)","v":11},{"$f":"IF($O$2<>\"\",VLOOKUP($O$2,$D$5:$E$19,2,0),\"図消去\")","v":"額縁溝"}]
[null,null,null,null,"実施対策\n図･説明の表示○→ｸﾘｯｸ",null,null,"対策内容   図下の番号入力",null,"ポイント"]
[null,null,"畑の準備",null,null,null,null,"↓","1~3又は1~4を入力",null,null,null,null,{"$f":"IF(P2=\"図消去\",\"実施対策の各項目の後ろ ○印 をクリックすると、\",\"\")","v":""}]
[null,null,null,11,"額縁溝",null,null,null,{"$f":"IF(H5=\"\",\"\",VLOOKUP($H5,図・選択肢!$A$29:$C$32,2,0))","v":""},{"$f":"IF(OR(H5=0,H5=\"\"),\"\",VLOOKUP($H5,図・選択肢!$A$28:$C$32,3,0))","v":""}]
[null,null,null,null,null,null,null,null,null,null,null,null,null,{"$f":"IF(P2=\"図消去\",\"実施対策の図や説明、対策内容の選択肢（1～3又は1～4）が表示されます。\",\"\")","v":""}]
[null,null,null,12,"溝・額縁接続",null,null,null,{"$f":"IF(H7=\"\",\"\",VLOOKUP($H7,図・選択肢!$A$50:$C$52,2,0))","v":""},{"$f":"IF(OR(H7=0,H7=\"\"),\"\",VLOOKUP($H7,図・選択肢!$A$49:$C$52,3,0))","v":""}]
[null,null,null,null,null,null,null,null,null,null,null,null,null,{"$f":"IF(P2=\"図消去\",\"図や説明、実施対策の選択肢を全て消したいときは、欄外の ○印 をクリック\",\"\")","v":""}]
[null,null,null,13,"法面下の溝",null,null,null,{"$f":"IF(H9=\"\",\"\",VLOOKUP($H9,図・選択肢!$A$71:$C$74,2,0))","v":""},{"$f":"IF(OR(H9=0,H9=\"\"),\"\",VLOOKUP($H9,図・選択肢!$A$70:$C$74,3,0))","v":""}]
[null,null,null,null,null,null,null,null,null,null,null,null,null,{"$f":"IF(P2=\"図消去\",\"対策内容の番号を入力後、診断コメントを表示したいときは、表右下の水色欄に☑\",\"\")","v":""}]
[null,null,null,14,"排水口の拡大",null,null,null,{"$f":"IF(H11=\"\",\"\",VLOOKUP($H11,図・選択肢!$A$91:$C$93,2,0))","v":""},{"$f":"IF(OR(H11=0,H11=\"\"),\"\",VLOOKUP($H11,図・選択肢!$A$90:$C$93,3,0))","v":""}]
[]
[null,null,null,15,"複数の排水口",null,null,null,{"$f":"IF(H13=\"\",\"\",VLOOKUP($H13,図・選択肢!$A$111:$C$113,2,0))","v":""},{"$f":"IF(OR(H13=0,H13=\"\"),\"\",VLOOKUP($H13,図・選択肢!$A$110:$C$113,3,0))","v":""}]
[]
[null,null,null,16,"長いうねの切断",null,null,null,{"$f":"IF(H15=\"\",\"\",VLOOKUP($H15,図・選択肢!$A$131:$C$133,2,0))","v":""},{"$f":"IF(OR(H15=0,H15=\"\"),\"\",VLOOKUP($H15,図・選択肢!$A$130:$C$133,3,0))","v":""}]
[null,null,null,null,null,null,null,null,null,null,null,{"$f":"IF(OR($P$2=\"図消去\",$D$21=TRUE),\"選択肢消去\",$P$2&\"選択肢\")","v":"額縁溝選択肢"}]
[null,null,null,17,"うね間以外の溝",null,null,null,{"$f":"IF(H17=\"\",\"\",VLOOKUP($H17,図・選択肢!$A$151:$C$153,2,0))","v":""},{"$f":"IF(OR(H17=0,H17=\"\"),\"\",VLOOKUP($H17,図・選択肢!$A$150:$C$153,3,0))","v":""}]
[null,null,null,null,null,null,null,null,null,null,{"$f":"IF($D$21=FALSE,\"診断は\",\"入力に戻るには\")","v":"診断は"}]
[null,null,null,18,"うねの形",null,null,null,{"$f":"IF(H19=\"\",\"\",VLOOKUP($H19,図・選択肢!$A$171:$C$174,2,0))","v":""},{"$f":"IF(OR(H19=0,H19=\"\"),\"\",VLOOKUP($H19,図・選択肢!$A$170:$C$174,3,0))","v":""}]
[null,null,null,null,null,null,null,null,null,null,{"$f":"IF($D$21=FALSE,\"下欄にﾁｪｯｸ\",\"ﾁｪｯｸ 消去\")","v":"下欄にﾁｪｯｸ"}]
[null,null,null,false,"図・説明の消去",null,null,null,"ポイント合計",{"$f":"SUM(J5:J19)","v":0}]
[null,null,null,null,null,null,null,null,"改善が必要",{"$f":"COUNTIF($J$5:$J$20,\"<0\")","v":0},{"$f":"IF(D21=FALSE,\"コメント消去\",\"畑の準備コメント\")","v":"コメント消去"}]
[null,null,null,null,null,null,null,null,"改善の余地あり",{"$f":"COUNTIF($J$5:$J$20,\"00\")","v":0}]

{"sheet":"梅雨対策","index":2,"n_rows":16,"n_cols":20,"rows_kept":16,"cut":false,"hidden":false,"merged":[[2,4,3,6],[17,0,18,1],[9,10,10,10],[10,9,11,9],[13,0,14,1],[5,0,6,1],[9,0,10,1],[13,10,14,10],[3,2,11,2],[4,4,5,5],[6,4,7,5],[8,4,9,5],[10,4,11,5],[4,7,5,7],[6,7,7,7],[10,8,11,8],[4,9,5,9],[6,9,7,9],[8,9,9,9],[10,7,11,7],[2,9,3,9],[4,8,5,8],[6,8,7,8],[8,8,9,8],[8,7,9,7]]}
["排水対策診断システム",null,null,null,null,null,null,"梅雨対策",null,null,null,null,null,null,null,null,null,null,null,"京都府南丹農業改良普及センター"]
[null,null,null,1," ○をｸﾘｯｸで説明表示、図の下の選択肢番号を水色欄に入力してください",null,null,null,null,null,null,null,null,null,{"$f":"IF(OR($D$2=0,$D$2=5),\"\",$D$2+20)","v":21},{"$f":"IF($O$2<>\"\",VLOOKUP($O$2,$D$5:$E$11,2,0),\"梅雨図消去\")","v":"水たまり観察"}]
[null,null,null,null,"実施対策\n図･説明の表示○→ｸﾘｯｸ",null,null,"対策内容   図下の番号入力",null,"ポイント"]
[null,null,"梅雨対策",null,null,null,null,"↓","1~3又は1~4を入力",null,null,null,null,{"$f":"IF(P2=\"梅雨図消去\",\"実施対策の各項目の後ろ ○印 をクリックすると、\",\"\")","v":""}]
[null,null,null,21,"水たまり観察",null,null,null,{"$f":"IF(梅雨対策!H5=\"\",\"\",VLOOKUP(梅雨対策!$H5,図・選択肢!$A$205:$C$208,2,0))","v":""},{"$f":"IF(OR(H5=0,H5=\"\"),\"\",VLOOKUP(梅雨対策!$H5,図・選択肢!$A$205:$C$208,3,0))","v":""}]
[null,null,null,null,null,null,null,null,null,null,null,null,null,{"$f":"IF(P2=\"梅雨図消去\",\"実施対策の図や説明、対策内容の選択肢（1～3又は1～4）が表示されます。\",\"\")","v":""}]
[null,null,null,22,"溝の修復",null,null,null,{"$f":"IF(梅雨対策!H7=\"\",\"\",VLOOKUP(梅雨対策!$H7,図・選択肢!$A$225:$C$228,2,0))","v":""},{"$f":"IF(OR(H7=0,H7=\"\"),\"\",VLOOKUP(梅雨対策!$H7,図・選択肢!$A$225:$C$228,3,0))","v":""}]
[null,null,null,null,null,null,null,null,null,null,null,null,null,{"$f":"IF(P2=\"梅雨図消去\",\"図や説明、実施対策の選択肢を全て消したいときは、欄外の ○印 をクリック\",\"\")","v":""}]
[null,null,null,23,"溝さらえ",null,null,null,{"$f":"IF(梅雨対策!H9=\"\",\"\",VLOOKUP(梅雨対策!$H9,図・選択肢!$A$245:$C$248,2,0))","v":""},{"$f":"IF(OR(H9=0,H9=\"\"),\"\",VLOOKUP(梅雨対策!$H9,図・選択肢!$A$245:$C$248,3,0))","v":""}]
[null,null,null,null,null,null,null,null,null,null,{"$f":"IF($D$13=FALSE,\"診断は\",\"入力に戻るには\")","v":"診断は"},null,null,{"$f":"IF(P2=\"梅雨図消去\",\"対策内容の番号を入力後、診断コメントを表示したいときは、表右下の水色欄に☑\",\"\")","v":""}]
[null,null,null,24,"土寄せ・高うね",null,null,null,{"$f":"IF(梅雨対策!H11=\"\",\"\",VLOOKUP(梅雨対策!$H11,図・選択肢!$A$265:$C$268,2,0))","v":""},{"$f":"IF(OR(H11=0,H11=\"\"),\"\",VLOOKUP(梅雨対策!$H11,図・選択肢!$A$265:$C$268,3,0))","v":""}]
[null,null,null,null,null,null,null,null,null,null,{"$f":"IF($D$13=FALSE,\"下欄にﾁｪｯｸ\",\"ﾁｪｯｸ 消去\")","v":"下欄にﾁｪｯｸ"}]
["",null,null,false,"図・説明の消去",null,null,null,"ポイント合計",{"$f":"SUM(J5:J12)","v":0}]
[null,null,null,null,null,null,null,null,"改善が必要",{"$f":"COUNTIF($J$5:$J$12,\"<0\")","v":0},{"$f":"IF(D13=FALSE,\"梅雨コメント消去\",\"梅雨コメント\")","v":"梅雨コメント消去"}]
[null,null,null,null,null,null,null,null,"改善の余地あり",{"$f":"COUNTIF($J$5:$J$12,\"00\")","v":0}]
[null,null,null,null,null,null,null,null,null,null,null,{"$f":"IF(OR($P$2=\"梅雨図消去\",$D$13=TRUE),\"梅雨選択肢消去\",$P$2&\"選択肢\")","v":"水たまり観察選択肢"}]

{"sheet":"大雨対策","index":3,"n_rows":47,"n_cols":29,"rows_kept":47,"cut":false,"hidden":false,"merged":[[25,11,25,13],[25,14,25,16],[25,17,25,19],[26,11,26,13],[26,14,26,16],[26,17,26,19],[2,9,3,9],[4,7,5,7],[4,8,5,8],[17,0,18,1],[11,11,11,13],[12,11,12,13],[13,0,14,1],[8,4,9,6],[3,2,9,2],[5,0,6,1],[6,7,7,7],[8,7,9,7],[9,0,10,1],[2,4,3,6],[4,9,5,9],[4,4,5,6],[6,4,7,6],[11,17,11,19],[12,17,12,19],[6,8,7,8],[6,9,7,9],[8,8,9,8],[8,9,9,9],[11,14,11,16],[12,14,12,16]]}
["排水対策診断システム",null,null,null,null,null,null,"大雨対策",null,null,null,null,null,"実施したら図の下の水色欄に☑",null,null,null,"京都府南丹農業改良普及センター"]
[null,null,null,1," 大雨前に対策しましょう。入力は右の図の中",null,null,null,null,null,null,"排水溝のメンテナンス"]
[null,null,null,null,"実施対策内容",null,null,"実施対策数",null,"ポイント"]
[null,null,"大雨対策",null,null,null,null,"↓","実施した内容"]
[null,null,null,31,{"$f":"L2","v":"排水溝のメンテナンス"},null,null,{"$f":"COUNTIF(X11:X13,TRUE)","v":0},{"$f":"Z14","v":""},{"$f":"IF(AA14<>0,AA14,\"\")","v":""}]
[]
[null,null,null,32,{"$f":"L16","v":"排水口の改善"},null,null,{"$f":"COUNTIF(X21:X23,TRUE)","v":0},{"$f":"Z24","v":""},{"$f":"IF(AA24<>0,AA24,\"\")","v":""}]
[]
[null,null,null,33,{"$f":"L30","v":"「畑の準備」で改善、改善余地ある事項"},null,null,{"$f":"COUNTIF(X31:X45,TRUE)","v":0},{"$f":"Z46","v":""},{"$f":"IF(AA46<>0,AA46,\"\")","v":""}]
[null,null,null,null,null,null,null,null,null,null,null,null,null,null,null,null,null,null,null,null,null,null,null,null,null,"TRUE項目","溝メンテP","配点"]
[null,null,null,false,{"$f":"IF($D$11=FALSE,\"診断は下欄にﾁｪｯｸ\",\"ﾁｪｯｸ消去で診断非表示\")","v":"診断は下欄にﾁｪｯｸ"},null,null,null,"ポイント合計",{"$f":"SUM(J5:J10)","v":0},null,null,null,null,null,null,null,null,null,null,null,null,null,false,"溝さらえ　",{"$f":"IF(X11=TRUE,Y11,\"\")","v":""},{"$f":"IF(X11=TRUE,AB11,0)","v":0},5]
[null,null,null,{"$f":"IF(D11=FALSE,\"消去大雨コメント\",\"大雨コメント\")","v":"消去大雨コメント"},null,null,null,null,"実施対策数",{"$f":"SUM(H5:H10)","v":0},null,"流れ悪い部分の修復",null,null,"溝の交点を広く",null,null,"排水口近くの溝幅を広く",null,null,null,null,null,false,"溝交点　",{"$f":"IF(X12=TRUE,Y12,\"\")","v":""},{"$f":"IF(X12=TRUE,AB12,0)","v":0},3]
["",null,null,null,null,null,null,null,null,null,null,"（溝さらえ、除草）",null,null,"（特に排水口付近）",null,null,"（排水口前は深く）",null,null,null,null,null,false,"溝幅拡張　","",0,5]
[null,null,null,null,null,null,null,null,null,null,null,null,null,null,null,null,null,null,null,null,null,null,null,null,null,{"$f":"Z11&Z12&Z13","v":""},{"$f":"SUM(AA11:AA13)","v":0}]
[]
[null,null,null,null,null,null,null,null,null,null,null,"排水口の改善"]
[]
[]
[]
[null,null,null,null,null,null,null,null,null,null,null,null,null,null,null,null,null,null,null,null,null,null,null,null,null,null,"排水口改善P","配点"]
[null,null,null,null,null,null,null,null,null,null,null,null,null,null,null,null,null,null,null,null,null,null,null,false,"排水口拡幅　",{"$f":"IF(X21=TRUE,Y21,\"\")","v":""},{"$f":"IF(X21=TRUE,AB21,0)","v":0},5]
[null,null,null,null,null,null,null,null,null,null,null,null,null,null,null,null,null,null,null,null,null,null,null,false,"排水口増設　","",0,5]
[null,null,null,null,null,null,null,null,null,null,null,null,null,null,null,null,null,null,null,null,null,null,null,false,"入水口越水防止　","",0,3]
[null,null,null,null,null,null,null,null,null,null,null,null,null,null,null,null,null,null,null,null,null,null,null,null,null,{"$f":"Z21&Z22&Z23","v":""},{"$f":"SUM(AA21:AA23)","v":0}]
[]
[null,null,null,null,null,null,null,null,null,null,null,"排水口の拡幅",null,null,"複数の排水口を設置",null,null,"入水口の越水防止"]
[null,null,null,null,null,null,null,null,null,null,null,"（幅広く、深く）",null,null,"（排水口増設）",null,null,"（水路増水時も入らないよう）"]
[]
[]
[null,null,null,null,null,null,null,null,null,null,null,"「畑の準備」で改善、改善余地ある事項",null,null,null,null,null,null,null,null,null,null,null,null,null,null,"準備→改善P","配点","未改善事項"]
[null,null,null,null,null,null,null,null,null,null,null,{"$f":"IF('診　断'!$X$160<1,\"\",1)","v":""},{"$f":"VLOOKUP($L31,'診　断'!$Y$152:$AD$159,2)","v":""},null,null,null,null,null,null,null,null,null,null,false,{"$f":"VLOOKUP($L31,'診　断'!$Y$152:$AD$159,3)&\"　\"","v":"　"},{"$f":"IF(X31=TRUE,Y31,\"\")","v":""},{"$f":"IF(X31=TRUE,AB31,0)","v":0},{"$f":"VLOOKUP($L31,'診　断'!$Y$152:$AD$159,4)","v":""},{"$f":"IF(AND(L31<>\"\",X31=FALSE),VLOOKUP($L31,'診　断'!$T$152:$U$159,2),\"\")","v":""}]
[]
[null,null,null,null,null,null,null,null,null,null,null,{"$f":"IF('診　断'!$X$160<2,\"\",2)","v":""},{"$f":"VLOOKUP($L33,'診　断'!$Y$152:$AD$159,2)","v":""},null,null,null,null,null,null,null,null,null,null,false,{"$f":"VLOOKUP($L33,'診　断'!$Y$152:$AD$159,3)&\"　\"","v":"　"},{"$f":"IF(X33=TRUE,Y33,\"\")","v":""},0,{"$f":"VLOOKUP($L33,'診　断'!$Y$152:$AD$159,4)","v":""},{"$f":"IF(AND(L33<>\"\",X33=FALSE),VLOOKUP($L33,'診　断'!$T$152:$U$159,2),\"\")","v":""}]
[]
[null,null,null,null,null,null,null,null,null,null,null,{"$f":"IF('診　断'!$X$160<3,\"\",3)","v":""},{"$f":"VLOOKUP($L35,'診　断'!$Y$152:$AD$159,2)","v":""},null,null,null,null,null,null,null,null,null,null,false,{"$f":"VLOOKUP($L35,'診　断'!$Y$152:$AD$159,3)&\"　\"","v":"　"},{"$f":"IF(X35=TRUE,Y35,\"\")","v":""},0,{"$f":"VLOOKUP($L35,'診　断'!$Y$152:$AD$159,4)","v":""},{"$f":"IF(AND(L35<>\"\",X35=FALSE),VLOOKUP($L35,'診　断'!$T$152:$U$159,2),\"\")","v":""}]
[]
[null,null,null,null,null,null,null,null,null,null,null,{"$f":"IF('診　断'!$X$160<4,\"\",4)","v":""},{"$f":"VLOOKUP($L37,'診　断'!$Y$152:$AD$159,2)","v":""},null,null,null,null,null,null,null,null,null,null,false,{"$f":"VLOOKUP($L37,'診　断'!$Y$152:$AD$159,3)&\"　\"","v":"　"},{"$f":"IF(X37=TRUE,Y37,\"\")","v":""},0,{"$f":"VLOOKUP($L37,'診　断'!$Y$152:$AD$159,4)","v":""},{"$f":"IF(AND(L37<>\"\",X37=FALSE),VLOOKUP($L37,'診　断'!$T$152:$U$159,2),\"\")","v":""}]
[]
[null,null,null,null,null,null,null,null,null,null,null,{"$f":"IF('診　断'!$X$160<5,\"\",5)","v":""},{"$f":"VLOOKUP($L39,'診　断'!$Y$152:$AD$159,2)","v":""},null,null,null,null,null,null,null,null,null,null,false,{"$f":"VLOOKUP($L39,'診　断'!$Y$152:$AD$159,3)&\"　\"","v":"　"},{"$f":"IF(X39=TRUE,Y39,\"\")","v":""},0,{"$f":"VLOOKUP($L39,'診　断'!$Y$152:$AD$159,4)","v":""},{"$f":"IF(AND(L39<>\"\",X39=FALSE),VLOOKUP($L39,'診　断'!$T$152:$U$159,2),\"\")","v":""}]
[]
[null,null,null,null,null,null,null,null,null,null,null,{"$f":"IF('診　断'!$X$160<6,\"\",6)","v":""},{"$f":"VLOOKUP($L41,'診　断'!$Y$152:$AD$159,2)","v":""},null,null,null,null,null,null,null,null,null,null,false,{"$f":"VLOOKUP($L41,'診　断'!$Y$152:$AD$159,3)&\"　\"","v":"　"},{"$f":"IF(X41=TRUE,Y41,\"\")","v":""},0,{"$f":"VLOOKUP($L41,'診　断'!$Y$152:$AD$159,4)","v":""},{"$f":"IF(AND(L41<>\"\",X41=FALSE),VLOOKUP($L41,'診　断'!$T$152:$U$159,2),\"\")","v":""}]
[]
[null,null,null,null,null,null,null,null,null,null,null,{"$f":"IF('診　断'!$X$160<7,\"\",7)","v":""},{"$f":"VLOOKUP($L43,'診　断'!$Y$152:$AD$159,2)","v":""},null,null,null,null,null,null,null,null,null,null,false,{"$f":"VLOOKUP($L43,'診　断'!$Y$152:$AD$159,3)&\"　\"","v":"　"},{"$f":"IF(X43=TRUE,Y43,\"\")","v":""},0,{"$f":"VLOOKUP($L43,'診　断'!$Y$152:$AD$159,4)","v":""},{"$f":"IF(AND(L43<>\"\",X43=FALSE),VLOOKUP($L43,'診　断'!$T$152:$U$159,2),\"\")","v":""}]
[]
[null,null,null,null,null,null,null,null,null,null,null,{"$f":"IF('診　断'!$X$160<8,\"\",8)","v":""},{"$f":"VLOOKUP($L45,'診　断'!$Y$152:$AD$159,2)","v":""},null,null,null,null,null,null,null,null,null,null,false,{"$f":"VLOOKUP($L45,'診　断'!$Y$152:$AD$159,3)&\"　\"","v":"　"},{"$f":"IF(X45=TRUE,Y45,\"\")","v":""},0,{"$f":"VLOOKUP($L45,'診　断'!$Y$152:$AD$159,4)","v":""},{"$f":"IF(AND(L45<>\"\",X45=FALSE),VLOOKUP($L45,'診　断'!$T$152:$U$159,2),\"\")","v":""}]
[null,null,null,null,null,null,null,null,null,null,null,null,null,null,null,null,null,null,null,null,null,null,null,null,null,{"$f":"Z31&Z33&Z35&Z37&Z39&Z41&Z43&Z45","v":""},{"$f":"SUM(AA31:AA45)","v":0},null,{"$f":"AC31&\"　\"&AC33&\"　\"&AC35&\"　\"&AC37&\"　\"&AC39&\"　\"&AC41&\"　\"&AC43&\"　\"&AC45","v":"　　　　　　　"}]
[null,null,null,null,null,null,null,null,null,null,null,null,null,null,null,null,null,null,null,null,null,null,null,null,null,null,null,null,{"$f":"IF(LEN(AC46)=7,\"　　な し\",AC46)","v":"　　な し"}]

{"sheet":"秋雨対策","index":4,"n_rows":17,"n_cols":8,"rows_kept":17,"cut":false,"hidden":true,"merged":[]}
[null,"排水対策支援システム",null,null,"秋雨対策"]
[]
[null,null,"No","実施対策",null,"対策内容 番号選択",null,"Ｐ"]
[4,"秋雨対策",41,"滞水部分観察",null,1,{"$f":"IF(F4=\"\",\"\",VLOOKUP($F4,畑の準備!$AA$24:$AC$28,2,0))","v":{"$error":"#N/A"}},{"$f":"VLOOKUP($F4,畑の準備!$AA$24:$AC$28,3,0)","v":{"$error":"#N/A"}}]
[null,null,42,"溝崩れ補修",null,1,{"$f":"IF(F5=\"\",\"\",VLOOKUP($F5,畑の準備!$AE$24:$AG$28,2,0))","v":{"$error":"#N/A"}},{"$f":"VLOOKUP($F5,畑の準備!$AE$24:$AG$28,3,0)","v":{"$error":"#N/A"}}]
[null,null,43,"溝さらえ",null,2,{"$f":"IF(F6=\"\",\"\",VLOOKUP($F6,畑の準備!$AI$24:$AK$28,2,0))","v":{"$error":"#N/A"}},{"$f":"VLOOKUP($F6,畑の準備!$AI$24:$AK$28,3,0)","v":{"$error":"#N/A"}}]
[null,null,44,"溝・うね間の除草",null,3,{"$f":"IF(F7=\"\",\"\",VLOOKUP($F7,畑の準備!$AM$24:$AO$28,2,0))","v":{"$error":"#N/A"}},{"$f":"VLOOKUP($F7,畑の準備!$AM$24:$AO$28,3,0)","v":{"$error":"#N/A"}}]
[null,null,null,null,null,null,"Ｐ計",{"$f":"SUM(H4:H7)","v":{"$error":"#N/A"}}]
[]
[]
[]
[]
[]
[null,"秋雨対策"]
[]
[]
[null,"未完成です"]

{"sheet":"図・選択肢","index":5,"n_rows":269,"n_cols":20,"rows_kept":269,"cut":false,"hidden":true,"merged":[[117,7,126,9],[77,8,86,11],[90,9,93,10],[90,11,93,12],[90,14,93,17],[110,6,111,8],[110,9,113,10],[110,11,113,12],[110,14,113,17],[90,6,93,8],[97,7,106,11],[36,9,45,13],[32,9,32,12],[15,7,24,10],[49,9,52,10],[49,12,52,13],[28,9,31,10],[28,11,31,12],[20,13,24,14],[28,13,31,15],[70,14,73,17],[57,12,58,14],[57,7,66,11],[70,9,73,10],[70,6,71,8],[70,11,73,12],[142,7,146,13],[150,6,152,8],[150,10,153,11],[150,13,153,15],[130,9,133,10],[130,11,133,12],[130,6,132,8],[204,11,207,12],[204,13,207,15],[170,9,173,10],[170,11,173,12],[170,6,173,8],[170,13,173,15],[164,8,165,9],[164,12,165,14],[264,6,267,8],[264,9,267,10],[264,11,267,12],[264,13,267,15],[224,6,227,8],[224,9,227,10],[224,11,227,12],[224,13,227,15],[244,6,247,8],[244,9,247,10],[244,11,247,12],[244,13,247,15],[204,6,207,8],[204,9,207,10]]}
[null,null,null,"$E$1:$R$12 の空白は　図、"]
[null,null,null,"文字の消去に使用中 → → →"]
["畑の準備"]
[11,"額縁溝",null,null,null,null,null,null,null,null,null,null,null,null,null,null,null,null,21,"滞水部分観察"]
[12,"溝・額縁接続",null,null,null,null,null,null,null,null,null,null,null,null,null,null,null,null,22,"溝崩れ補修"]
[13,"法面下の溝",null,null,null,null,null,null,null,null,null,null,null,null,null,null,null,null,23,"溝さらえ"]
[14,"排水口の拡大",null,null,null,null,null,null,null,null,null,null,null,null,null,null,null,null,24,"土寄せ・高うね"]
[15,"複数の排水口"]
[16,"長いうねの切断"]
[17,"うね間以外の溝"]
[18,"うねの形"]
[]
[null,null,null,null,{"$f":"B4","v":"額縁溝"},null,null,null,null,"額縁溝は、外周を溝でつなぐ"]
[]
[]
[null,null,null,null,null,null,null,"　額縁溝は排水の基本\n　畑の内側の水を排出し、\n　外部からの浸水を防ぐ。\n　溝は広く、他の溝、う\n　ね間と確実につなぐ。"]
[]
[]
[]
[]
[null,null,null,null,null,null,null,null,null,null,null,null,null,"溝をつける際\nに崩れた土は\nきちんと取り\n除く"]
[null,null,null,null,"排水口"]
[null,null,null,null,"←←←"]
[]
[]
[]
[11,{"$f":"B4","v":"額縁溝"}]
[0,"説明",null,null,{"$f":"E13&\"選択肢\"","v":"額縁溝選択肢"},null,"１　なし",null,null,"２　片培土",null,"３　谷上げ",null,"４　溝掘り機"]
[1,"なし",-10,null,{"$f":"IF(畑の準備!$P$2=\"図消去\",\"選択肢消去\",畑の準備!$P$2)","v":"額縁溝"},null,"うねたてのみで",null,null,"機械に片培土板を\n着けて額縁溝つけ",null,"谷上げの培土板を\n着けて、しっかり\n額縁溝つけ",null,"溝掘り専用機を使用して、深くてしっかりした額縁溝つけ"]
[2,"片培土",0,null,null,null,"額縁溝はなし"]
[3,"谷上げ",5]
[4,"溝掘り機",7]
[{"$f":"COUNT(A29:A32)","v":4},"選択肢の数",null,null,{"$f":"B5","v":"溝・額縁接続"},null,null,null,null,"溝の交点をクワでつなげる"]
[]
[]
[]
[null,null,null,null,null,null,null,null,null,"　機械の溝つけは、先につけた溝をふさぐ。\n　クワで手直し、必ずつなぐ。"]
[]
[]
[]
[]
[]
[null,null,null,null,"排水口"]
[null,null,null,null,"←←←"]
[]
[]
[]
[12,{"$f":"B5","v":"溝・額縁接続"}]
[0,"説明",0,null,{"$f":"E33&\"選択肢\"","v":"溝・額縁接続選択肢"},null,"１　不接続",null,null,"２　接続済み",null,null,"３　角部分整形"]
[1,"不接続",-10,null,null,null,"機械で溝を",null,null,"機械で溝をつけた後、ふさがった交差する溝をくわ等でつなぐ",null,null,"溝の交差部分の角をさらに丸くしたり、幅を広げる"]
[2,"接続済み",3,null,null,null,"つけただけ"]
[3,"角部分整形",5]
[]
[{"$f":"COUNT(A50:A53)","v":3},"選択肢の数",null,null,{"$f":"B6","v":"法面下の溝"},null,null,null,null,"法面下に溝を増設","↓↓","↓↓","法面","↓↓"]
[]
[]
[]
[null,null,null,null,null,null,null,"　法面下は水がしみ出る\n　その水を排出する溝を増設\n\n　畑作を続ける場合は、深くて広い\n　恒久的な溝も検討を\n　ほ場内とは別の排水口から排水",null,null,null,null,"法面下に溝を増設"]
[]
[]
[]
[]
[]
[null,null,null,null,"排水口"]
[null,null,null,null,"←←←"]
[]
[]
[]
[13,{"$f":"B6","v":"法面下の溝"}]
[0,"説明",0,null,{"$f":"E54&\"選択肢\"","v":"法面下の溝選択肢"},null,"１　溝なし",null,null,"２　額縁のみ",null,"３　額縁の外側に溝",null,null,"４　法面下に恒久的溝"]
[1,"溝なし",-5,null,null,null,"法面下に溝なし",null,null,"額縁溝のみ\n設置",null,"額縁溝の法面下に\nわき水を排水する\n溝を増設",null,null,"法面下に重機などを\n使用して深くてしっ\nかりした恒久的な溝\nを設置"]
[2,"額縁のみ",0]
[3,"額縁外に溝",5]
[4,"恒久溝設置",10]
[{"$f":"COUNT(A71:A74)","v":4},"選択肢の数",null,null,{"$f":"B7","v":"排水口の拡大"}]
[]
[]
[null,null,null,null,null,null,null,null,"　大雨でも速やかに排水するため、\n　排水口は深く広く\n　手前の溝も広く。\n　10ミリの雨は10aで10トン\n　最初は土にしみ込むが、30ミリに\n　増えると20トンの排水が必要"]
[]
[]
[]
[]
[]
[null,null,null,null,"排水口"]
[null,null,null,null,"←←←"]
[null,null,null,null,"←←←"]
[]
[]
[14,{"$f":"B7","v":"排水口の拡大"}]
[0,"説明",0,null,{"$f":"E75&\"選択肢\"","v":"排水口の拡大選択肢"},null,"１　既設のまま",null,null,"２　排水口拡張",null,"３　排水口付近溝拡幅"]
[1,"既設のまま",0,null,null,null,"既設の排水口\n既設額縁溝のまま",null,null,"排水口を\n深く広く拡張",null,"排水口付近の溝を\n深く広く拡幅して\n排水しやすく"]
[2,"排水口拡張",3]
[3,"排水口付近溝拡幅",5]
[]
[{"$f":"COUNT(A91:A94)","v":3},"選択肢の数",null,null,"複数の排水口"]
[]
[null,null,null,null,"排水口"]
[null,null,null,null,"←←←",null,null,"　排水口を複数設置すれば\n　短時間で排水される。\n　深く水がたまった状態が続くと、\n　根傷みや病害発生の原因に\n　\n　長辺側に排水できれば、長辺側にも設置"]
[]
[]
[]
[]
[]
[null,null,null,null,"排水口"]
[null,null,null,null,"←←←"]
[]
[]
[]
[15,"複数の排水口"]
[0,"説明",0,null,{"$f":"E95&\"選択肢\"","v":"複数の排水口選択肢"},null,"１　1か所のみ",null,null,"２　2か所",null,"３　3か所以上"]
[1,"1か所のみ",0,null,null,null,"既設の排水口のみ",null,null,"もう１か所排水口\n増設",null,"さらに排水口を増設（長辺短辺問わず）\nほ場によっては長辺側に設置"]
[2,"2か所",3]
[3,"3か所以上",5]
[]
[{"$f":"COUNT(A111:A114)","v":3},"選択肢の数",null,null,"長いうねの切断",null,null,"うねを切断、直交する溝をつける"]
[]
[]
[null,null,null,null,null,null,null,"　長いうねは直交する\n　溝でうねを切断\n　中央付近や排水不\n　良部などに複数設置\n　が望ましい"]
[]
[]
[]
[]
[]
[null,null,null,null,"排水口"]
[null,null,null,null,"←←←"]
[]
[]
[]
[16,"長いうねの切断"]
[0,"説明",0,null,{"$f":"E115&\"選択肢\"","v":"長いうねの切断選択肢"},null,"１　長いまま",null,null,"２　うね長25m以上",null,"３　うね長25m未満"]
[1,"長いまま",0,null,null,null,"うね立てしたまま、うねを切断する溝\nなし",null,null,"直行する溝は設置\nしているが、うね\nの長さは25m以上",null,"直行する溝を複数\n設置、うねの長さ\nは25m未満"]
[2,"うねの長さ25m以上",5]
[3,"うねの長さ25m未満",7]
[]
[{"$f":"COUNT(A131:A134)","v":3},"選択肢の数",null,null,"うね間以外の溝"]
[]
[]
[]
[]
[]
[]
[]
[null,null,null,null,null,null,null,"　　うね間よりやや広くて深い排水のための溝を設置\n　　排水が悪い場合は10m程度の間隔で設置"]
[null,null,null,null,"排水口"]
[null,null,null,null,"←←←"]
[]
[]
[]
[17,"うね間以外の溝"]
[0,"説明",0,null,{"$f":"E135&\"選択肢\"","v":"うね間以外の溝選択肢"},null,"１　なし",null,null,null,"２　溝あり 間隔10m以上",null,null,"３　溝あり 間隔10m未満"]
[1,"なし",0,null,null,null,"うね立てしたまま、うねと平行の溝\nなし",null,null,null,"うね間と平行の排水溝を設置しているが、その溝の間隔は10m以上",null,null,"うね間と平行の排水溝を設置しているが、その溝の間隔は10m未満"]
[2,"溝あり 間隔10m以上",5]
[3,"溝あり 間隔10m未満",7]
[]
[{"$f":"COUNT(A151:A154)","v":3},"選択肢の数",null,null,"うねの形"]
[]
[]
[]
[]
[null,null,null,null,null,null,null,null,"１　へこみ有り",null,null,null,"３　かまぼこ型"]
[]
[]
[]
[]
[null,null,null,null,null,null,null,null,"２　上面は平面",null,null,null,"４　かまぼこ型で高うね"]
[]
[]
[]
[18,"うねの形"]
[0,"説明",null,null,{"$f":"E155&\"選択肢\"","v":"うねの形選択肢"},null,"１　うね上へこみ",null,null,"２　上面は平面",null,"３　かまぼこ型",null,"４　かまぼこ型高うね"]
[1,"うね上へこみ",-3,null,null,null,"うね上面にへこみ\nあり\n(培土盤で土をあげるとうね肩が高くなる)",null,null,"うね上面は平らになっている\n",null,"うね上面はかまぼ\nこ型で、中央部が\n高くなっている\n",null,"うね上面はかまぼこ型、うねは高うね"]
[2,"上面は平面",0]
[3,"かまぼこ型",5]
[4,"かまぼこ型高うね",7]
[{"$f":"COUNT(A171:A174)","v":4},"選択肢の数"]
[null,null,null,"$E$176:$P$187 の空白は、"]
[null,null,null,"図、文字の消去に使用中  →"]
["梅雨対策"]
[21,"水たまり観察"]
[22,"溝の修復"]
[23,"溝さらえ"]
[24,"土寄せ・高うね"]
[]
[]
[]
[]
[]
[]
[null,null,null,null,"水たまり観察"]
[]
[]
[]
[]
[]
[]
[]
[]
[null,null,null,null,"排水口"]
[null,null,null,null,"←←←"]
[]
[]
[]
[21,"水たまり観察"]
[0,"説明",0,null,{"$f":"E189&\"選択肢\"","v":"水たまり観察選択肢"},null,"１　観察せず",null,null,"２　水たまり発見",null,"３　要修復部分発見",null,"４　問題部分なし"]
[1,"観察せず",-3,null,null,null,"雨が降った後の状\n況を観察していな\nい",null,null,"雨の後、長時間水\nがたまっている部\n分を発見",null,"溝が崩れたり草が\n生えて、水が流れ\nにくく修復が必要\nな部分を発見",null,"雨後に溝の各部や\n畑の内部を観察し\nたが、問題となる\n部分なし"]
[2,"水たまり発見",0]
[3,"要修復部分発見",2]
[4,"問題部分なし",5]
[{"$f":"COUNT(A205:A208)","v":4},"選択肢の数",null,null,"溝の修復"]
[]
[]
[]
[]
[]
[]
[]
[]
[null,null,null,null,"排水口"]
[null,null,null,null,"←←←"]
[]
[]
[]
[22,"溝の修復"]
[0,"説明",0,null,{"$f":"E209&\"選択肢\"","v":"溝の修復選択肢"},null,"１　見ていない",null,null,"２　枕地のみ修復",null,"３　外周も修復",null,"４　要修復部分なし"]
[1,"見ていない",-3,null,null,null,"溝の崩れやつまり\nがないか見ていな\nい、又は見たが放\n置した",null,null,"枕地部分の溝崩れ\nやつまりを修復",null,"枕地に加え外周の\n額縁溝も点検･修\n復",null,"枕地、額縁溝、畑\nの内部など点検し\nたが、修復の必要\nな部分なし"]
[2,"枕地のみ修復",3]
[3,"外周も修復",5]
[4,"要修復部分なし",5]
[{"$f":"COUNT(A225:A228)","v":4},"選択肢の数",null,null,"溝さらえ"]
[]
[]
[]
[]
[]
[]
[]
[]
[null,null,null,null,"排水口"]
[null,null,null,null,"←←←"]
[]
[]
[]
[23,"溝さらえ"]
[0,"説明",0,null,{"$f":"E229&\"選択肢\"","v":"溝さらえ選択肢"},null,"１　見ていない",null,null,"２　枕地のみ処置",null,"３　外周も処置",null,"４　うね間も処置"]
[1,"見ていない",-3,null,null,null,"溝の流れが悪いか\nどうか見ていない、又は見たが放置",null,null,"枕地部分の溝さら\nえを実施",null,"枕地に加え外周の\n額縁溝も溝さらえ",null,"枕地、額縁溝に加\nえ畑内部のうね間\nも流れにくい部分\nを溝さらえ"]
[2,"枕地のみ処置",3]
[3,"外周も処置",5]
[4,"うね間も処置",7]
[{"$f":"COUNT(A245:A248)","v":4},"選択肢の数",null,null,"土寄せ・高うね"]
[]
[]
[]
[]
[]
[null,null,null,null,null,null,null,null,"１　土寄せせず",null,null,null,"３　土寄せ２回"]
[]
[]
[]
[]
[]
[null,null,null,null,null,null,null,null,"２　土寄せ１回",null,null,null,"４　2回以上溝深く高うね"]
[]
[24,"土寄せ・高うね"]
[0,"説明",0,null,{"$f":"E249&\"選択肢\"","v":"土寄せ・高うね選択肢"},null,"１　土寄せせず",null,null,"２　土寄せ１回",null,"３　土寄せ２回",null,"４　2回以上溝深く高うね"]
[1,"土寄せせず",-3,null,null,null,"うね立て時のまま、土寄せなし",null,null,"土寄せを1回実施\n（クワでの小寄せ\n　も１回とする）",null,"土寄せを２回行い、\nうねとうね間を明\n瞭に（クワでの小\n寄せも１回とする）",null,"高うねでうね間が\n深くなるよう意識\nして２回以上土寄せ"]
[2,"土寄せ１回",3]
[3,"土寄せ２回",5]
[4,"2回以上溝深く高うね",7]
[{"$f":"COUNT(A265:A268)","v":4},"選択肢の数"]

{"sheet":"診　断","index":6,"n_rows":161,"n_cols":33,"rows_kept":161,"cut":false,"hidden":true,"merged":[[124,20,125,30],[128,20,129,30],[132,20,133,30],[121,4,122,5],[121,6,122,8],[121,9,122,10],[121,11,122,11],[121,16,122,17],[129,5,143,12],[6,20,7,29],[10,20,11,29],[14,20,15,29],[27,5,30,16],[25,4,26,5],[25,6,26,8],[25,9,26,10],[25,12,26,15],[25,16,26,17],[25,11,26,11],[83,12,84,17],[83,5,84,10],[83,4,84,4],[83,11,84,11],[31,5,43,16],[66,4,67,5],[66,6,67,8],[66,9,67,10],[70,20,71,30],[74,20,75,30],[78,20,79,30],[66,11,67,11],[66,12,67,15],[66,16,67,17],[68,5,72,16],[73,5,82,16],[146,4,147,4],[121,12,122,13],[123,5,128,12],[144,4,145,4],[144,5,145,9],[144,11,145,13],[146,11,147,13],[144,10,145,10],[146,10,147,10],[146,5,147,9]]}
["診　断",null,null,null,null,null,null,null,null,null,null,null,null,null,null,null,null,null,null,"畑の準備",null,11,12,13,14,15,16,17,18]
[null,null,null,1,null,null,null,null,null,null,null,null,null,null,null,null,null,null,null,"ポイント",{"$f":"IF(COUNTA(畑の準備!H5:H20)=0,\"まだ入力されてません\",IF(ポイント<=10,U7,IF(ポイント>=21,U15,U11)))","v":"まだ入力されてません"},{"$f":"畑の準備!J5","v":""},{"$f":"畑の準備!J7","v":""},{"$f":"畑の準備!J9","v":""},{"$f":"畑の準備!J11","v":""},{"$f":"畑の準備!J13","v":""},{"$f":"畑の準備!J15","v":""},{"$f":"畑の準備!J17","v":""},{"$f":"畑の準備!J19","v":""}]
[null,null,null,null,null,null,null,null,null,null,null,null,null,null,null,null,null,null,null,"改善必要",{"$f":"V3&W3&X3&Y3&Z3&AA3&AB3&AC3","v":""},{"$f":"IF(畑の準備!J5<0,U19&CHAR(10),\"\")","v":""},{"$f":"IF(畑の準備!J7<0,U22&CHAR(10),\"\")","v":""},{"$f":"IF(畑の準備!J9<0,U25&CHAR(10),\"\")","v":""},null,null,null,null,{"$f":"IF(畑の準備!J19<0,U28&CHAR(10),\"\")","v":""}]
[null,null,null,null,null,null,null,null,null,null,null,null,null,null,null,null,null,null,null,"改善余地",{"$f":"V4&W4&X4&Y4&Z4&AA4&AB4&AC4","v":""},{"$f":"IF(畑の準備!J5=0,U33,\"\")","v":""},null,{"$f":"IF(畑の準備!J9=0,U36,\"\")","v":""},{"$f":"IF(畑の準備!J11=0,U39,\"\")","v":""},{"$f":"IF(畑の準備!J13=0,U42,\"\")","v":""},{"$f":"IF(畑の準備!J15=0,U45,\"\")","v":""},{"$f":"IF(畑の準備!J17=0,U48,\"\")","v":""},{"$f":"IF(畑の準備!J19=0,U51,\"\")","v":""}]
[null,null,null,null,"↓  $E$6:$R$24 はコメント消去のための空白"]
[null,null,null,"コメント消去",null,null,null,null,null,null,null,null,null,null,null,null,null,null,null,null,"10以下","排水対策が不十分"]
[null,null,null,null,null,null,null,null,null,null,null,null,null,null,null,null,null,null,null,null,"　排水対策は不十分です。排水が特に良い畑ならば大丈夫かもしれませんが、溝の設置や排水口などそれぞれの項目を見直し、可能な対策は今からでも実施してください。"]
[]
["改善が必要　のコメント"]
[null,null,null,null,null,null,null,null,null,null,null,null,null,null,null,null,null,null,null,null,"10～20","排水対策改善の余地あり"]
[null,null,null,null,null,null,null,null,null,null,null,null,null,null,null,null,null,null,null,null,"　一般的な排水対策は実施されていますが、排水不良部分がある場合は不十分かもしれません。常に湿気る部分、雨で水がたまる部分には積極的に対策を行い、雨の時期に備えましょう。"]
[]
[]
[null,null,null,null,null,null,null,null,null,null,null,null,null,null,null,null,null,null,null,null,"21以上","基本的な排水対策はできている"]
[null,null,null,null,null,null,null,null,null,null,null,null,null,null,null,null,null,null,null,null,"　排水対策はいろいろ実施されています。これで油断せぬよう観察を欠かさずに、溝や排水口をメンテナンスし、予想外の排水不良が起こらないよう、対処してください。"]
[]
[]
["保護　のパスワード",null,null,null,null,null,null,null,null,null,null,null,null,null,null,null,null,null,null,null,"額縁マイナス"]
["y-tanaka",null,null,null,null,null,null,null,null,null,null,null,null,null,null,null,null,null,null,null,"　額縁溝は基本。外周を完全につなぎ、排水口まで水が流れるようにします。"]
[]
[null,null,null,null,null,null,null,null,null,null,null,null,null,null,null,null,null,null,null,null,"溝額縁接続"]
[null,null,null,null,null,null,null,null,null,null,null,null,null,null,null,null,null,null,null,null,"　溝をつけたつもりでも、溝の交点は後からつけた培土板の土でふさがります。溝の末端とともに、クワで手直ししてつなぎます。"]
[]
[null,null,null,null,null,null,null,null,null,null,null,null,null,null,null,null,null,null,null,null,"法面下溝"]
[null,null,null,null,null,null,null,null,null,null,null,null,null,null,null,null,null,null,null,null,"　法面下は、地下水や上の水田の水がしみ出し、水がたまります。深めの溝を掘り、しみ出す水を遮断します。"]
[null,null,null,"畑の準備コメント","ポイント",null,{"$f":"畑の準備!J21","v":0},null,null,"改善が必要な項目",null,{"$f":"畑の準備!J22","v":0},"改善の余地がある項目",null,null,null,{"$f":"畑の準備!J23","v":0}]
[null,null,null,null,null,null,null,null,null,null,null,null,null,null,null,null,null,null,null,null,"うねへこみ"]
[null,null,null,null,null,{"$f":"U2","v":"まだ入力されてません"},null,null,null,null,null,null,null,null,null,null,null,null,null,null,"　培土板でうね立てすると、肩部分の土が盛り上がり中央がへこみます。数日たってへこむこともあるので、必ずクワで整形します。"]
[]
[]
[]
[null,null,null,null,null,{"$f":"U3&CHAR(10)&U4","v":"\n"},null,null,null,null,null,null,null,null,null,null,null,null,null,null,"額縁片培土"]
[null,null,null,null,null,null,null,null,null,null,null,null,null,null,null,null,null,null,null,null,"　額縁が片培土では水は流れにくく、少なくとも培土板で溝を明瞭にします。"]
[]
[null,null,null,null,null,null,null,null,null,null,null,null,null,null,null,null,null,null,null,null,"法面下額縁のみ"]
[null,null,null,null,null,null,null,null,null,null,null,null,null,null,null,null,null,null,null,null,"　法面下は水がたまりやすく、浸み出る水を確実に遮断する必要があります。"]
[]
[null,null,null,null,null,null,null,null,null,null,null,null,null,null,null,null,null,null,null,null,"排水口既設のまま"]
[null,null,null,null,null,null,null,null,null,null,null,null,null,null,null,null,null,null,null,null,"　大雨のあと短時間で排水するため、排水口は広く深く、流れやすくします。"]
[]
[null,null,null,null,null,null,null,null,null,null,null,null,null,null,null,null,null,null,null,null,"排水口1つ"]
[null,null,null,null,null,null,null,null,null,null,null,null,null,null,null,null,null,null,null,null,"　排水口が複数あると、近くから排水でき早く乾かすことが可能になります。"]
[]
[null,null,null,null,null,null,null,null,null,null,null,null,null,null,null,null,null,null,null,null,"長いうねのまま"]
[null,null,null,null,null,null,null,null,null,null,null,null,null,null,null,null,null,null,null,null,"　排水不良部近くにうねを切断する向きに溝を掘ると、排水が促進されます。"]
[null,null,null,null,"↓  $E$47:$R$65 は梅雨コメント消去のための空白"]
[null,null,null,"梅雨コメント消去",null,null,null,null,null,null,null,null,null,null,null,null,null,null,null,null,"うね間以外溝なし"]
[null,null,null,null,null,null,null,null,null,null,null,null,null,null,null,null,null,null,null,null,"　水たまりができる場合、うねと平行に少し深めの溝を掘り排水促進します。"]
[]
[null,null,null,null,null,null,null,null,null,null,null,null,null,null,null,null,null,null,null,null,"うね上平面"]
[null,null,null,null,null,null,null,null,null,null,null,null,null,null,null,null,null,null,null,null,"　黒大豆はうね中央に１条植えなので、かまぼこ型のうねで湿害を防ぎます。"]
[]
[]
[]
[]
[]
[]
[]
[]
[]
[]
[]
[]
[null,null,null,null,null,null,null,null,null,null,null,null,null,null,null,null,null,null,null,"梅雨対策",null,21,22,23,24]
[null,null,null,null,null,null,null,null,null,null,null,null,null,null,null,null,null,null,null,"ポイント",{"$f":"IF(COUNTA(大雨対策!H5:H10)=0,\"まだ入力されてません\",IF(ポイント梅雨<=2,U71,IF(ポイント梅雨>=10,U79,U75)))","v":"　梅雨時期の対策としては不十分です。雨のあと観察しないと、長雨や大雨で思わぬ被害を受けるかもしれません。水たまりや溝の修復が必要な部分がどこにあるかなど、日頃の観察を大切にしてください。"},{"$f":"梅雨対策!J5","v":""},{"$f":"梅雨対策!J7","v":""},{"$f":"梅雨対策!J9","v":""},{"$f":"梅雨対策!J11","v":""}]
[null,null,null,null,null,null,null,null,null,null,null,null,null,null,null,null,null,null,null,"改善必要",{"$f":"V66&W66&X66&Y66","v":""},{"$f":"IF(梅雨対策!J5<0,U83&CHAR(10),\"\")","v":""},{"$f":"IF(梅雨対策!J7<0,U86&CHAR(10),\"\")","v":""},{"$f":"IF(梅雨対策!J9<0,U89&CHAR(10),\"\")","v":""},{"$f":"IF(梅雨対策!J11<0,U92&CHAR(10),\"\")","v":""}]
[null,null,null,"梅雨コメント","ポイント",null,{"$f":"梅雨対策!J13","v":0},null,null,"改善が必要な項目",null,{"$f":"梅雨対策!J14","v":0},"改善の余地がある項目",null,null,null,{"$f":"梅雨対策!J15","v":0},null,null,"改善余地",{"$f":"V67","v":""},{"$f":"IF(梅雨対策!J5=0,U96&CHAR(10),\"\")","v":""},null,"",""]
[]
[null,null,null,null,null,{"$f":"U65","v":"　梅雨時期の対策としては不十分です。雨のあと観察しないと、長雨や大雨で思わぬ被害を受けるかもしれません。水たまりや溝の修復が必要な部分がどこにあるかなど、日頃の観察を大切にしてください。"}]
[null,null,null,null,null,null,null,null,null,null,null,null,null,null,null,null,null,null,null,null,"2以下","観察・対応が不十分"]
[null,null,null,null,null,null,null,null,null,null,null,null,null,null,null,null,null,null,null,null,"　梅雨時期の対策としては不十分です。雨のあと観察しないと、長雨や大雨で思わぬ被害を受けるかもしれません。水たまりや溝の修復が必要な部分がどこにあるかなど、日頃の観察を大切にしてください。"]
[]
[]
[null,null,null,null,null,{"$f":"U66&CHAR(10)&U67","v":"\n"},null,null,null,null,null,null,null,null,null,null,null,null,null,null,"2～10","対応に改善の余地あり"]
[null,null,null,null,null,null,null,null,null,null,null,null,null,null,null,null,null,null,null,null,"　観察や対策は一部実施されていますが、十分とはいえません。雨のあとにはどこが排水不良か、その原因は何か確認しましょう。溝もメンテナンスが必要で、修復や溝さらえをして、長雨・大雨に備えましょう。"]
[]
[]
[null,null,null,null,null,null,null,null,null,null,null,null,null,null,null,null,null,null,null,null,"10以上","基本的な対応はできている"]
[null,null,null,null,null,null,null,null,null,null,null,null,null,null,null,null,null,null,null,null,"　観察や基本的な対策は実施されています。しかし、溝は土なので崩れたり草が生えたりします。今後も日頃の観察、メンテナンスを怠らず、長雨・大雨に備えましょう。"]
[]
[]
[null,null,null,null,null,null,null,null,null,null,null,null,null,null,null,null,null,null,null,null,"観察マイナス"]
[null,null,null,null,null,null,null,null,null,null,null,null,null,null,null,null,null,null,null,null,"　雨のあと畑を見ていないと、知らないうちに湿害を受けたり、生育に異常があっても原因がわかりません。"]
[null,null,null,null,"畑の準備",{"$f":"IF(畑の準備!J21<=10,'診　断'!V6,IF(畑の準備!J21>21,'診　断'!V14,'診　断'!V10))","v":"排水対策が不十分"},null,null,null,null,null,"梅雨対策",{"$f":"IF(COUNTA(梅雨対策!H5:H8)=0,\"未入力\",IF(梅雨対策!J13<=2,'診　断'!V70,IF(梅雨対策!J13>10,'診　断'!V78,'診　断'!V74)))","v":"未入力"}]
[null,null,null,null,null,null,null,null,null,null,null,null,null,null,null,null,null,null,null,null,"修復マイナス"]
[null,null,null,null,null,null,null,null,null,null,null,null,null,null,null,null,null,null,null,null,"　溝は土なので、最初にきちんとしていても時間の経過で崩れたり、つまったりします。修復部分を見つけ、手入れしましょう。"]
[]
[null,null,null,null,null,null,null,null,null,null,null,null,null,null,null,null,null,null,null,null,"溝さらえマイナス"]
[null,null,null,null,null,null,null,null,null,null,null,null,null,null,null,null,null,null,null,null,"　溝の細くなった部分や交点は、土がたまって流れにくくなります。草が生えても流れにくくなりますので、流れが悪い部分は溝をさらえましょう。"]
[]
[null,null,null,null,null,null,null,null,null,null,null,null,null,null,null,null,null,null,null,null,"土寄せなし"]
[null,null,null,null,null,null,null,null,null,null,null,null,null,null,null,null,null,null,null,null,"　土寄せは、茎の上部から新たな根を発生させるとともに、溝を明瞭にして排水を良くします。省略するのはよくありません。"]
[]
[]
[null,null,null,null,null,null,null,null,null,null,null,null,null,null,null,null,null,null,null,null,"水たまりあり"]
[null,null,null,null,null,null,null,null,null,null,null,null,null,null,null,null,null,null,null,null,"　水たまりができるのは、何らかの原因があります。溝の修復すべき部分や、改善できる部分がないか確認しましょう。"]
[null,null,null,null,"↓  $E$98:$R$116 は大雨コメント消去のための空白"]
[null,null,null,"大雨コメント消去",null,null,null,null,null,null,null,null,null,null,null,null,null,null,null,null,"うね間以外溝なし"]
[null,null,null,null,null,null,null,null,null,null,null,null,null,null,null,null,null,null,null,null,"　水たまりができる場合、うねと平行に少し深めの溝を掘り排水促進します。"]
[]
[null,null,null,null,null,null,null,null,null,null,null,null,null,null,null,null,null,null,null,null,"うね上平面"]
[null,null,null,null,null,null,null,null,null,null,null,null,null,null,null,null,null,null,null,null,"　黒大豆はうね中央に１条植えなので、かまぼこ型のうねで湿害を防ぎます。"]
[]
[]
[]
[]
[]
[]
[]
[]
[]
[]
[]
[]
[]
[]
[]
[null,null,null,null,null,null,null,null,null,null,null,null,null,null,null,null,null,null,null,"大雨対策",null,31,32,33]
[null,null,null,null,null,null,null,null,null,null,null,null,null,null,null,null,null,null,null,"ポイント",{"$f":"IF(COUNTA(大雨対策!H5:H10)=0,\"対策が実施されていません\",IF(ポイント大雨<=9,U125,IF(ポイント大雨>20,U133,U129)))","v":"　大雨対策としては不十分です。大雨ではできる限りはやく雨水を排水するため、溝・排水口は、流れやすくする必要があります。畑の準備で十分対策していても、今一度点検しておきましょう。"},{"$f":"大雨対策!J5","v":""},{"$f":"大雨対策!J7","v":""},{"$f":"大雨対策!J9","v":""}]
[]
[null,null,null,null,null,null,null,null,null,null,null,null,null,null,null,null,null,null,null,"改善余地",{"$f":"V121&W121&X121&Y121&Z121&AA121","v":"　溝は土なので、最初にきちんとしていても時間の経過で崩れたり、つまったりします。溝さらえや除草を行いましょう。\n　溝の交点を広くするだけで、水は流れやすくなります。交点が狭いと流れが悪く、土がたまる原因になります。\n　排水口付近は畑全体の水が集まります。溝を広くすることで早く水が集まるようになり、排水口からの流れも早めます。\n　排水口を広く深くすると、短時間で排水できます。排水路の増水で逆流することがあるので、水位が低下してから排水します。\n　排水口が増えれば早く排水でき、水の流れもスムーズになります。各方向から排水できれば、畑全体の水が早く抜けます。\n　用水路が増水すると止めてある入水口から越水します。止水板を高くしたり土のうを積んで、越水を防止します。\n"},{"$f":"IF(大雨対策!AA11=0,U137&CHAR(10),\"\")","v":"　溝は土なので、最初にきちんとしていても時間の経過で崩れたり、つまったりします。溝さらえや除草を行いましょう。\n"},{"$f":"IF(大雨対策!AA12=0,U139&CHAR(10),\"\")","v":"　溝の交点を広くするだけで、水は流れやすくなります。交点が狭いと流れが悪く、土がたまる原因になります。\n"},{"$f":"IF(大雨対策!AA13=0,U141&CHAR(10),\"\")","v":"　排水口付近は畑全体の水が集まります。溝を広くすることで早く水が集まるようになり、排水口からの流れも早めます。\n"},{"$f":"IF(大雨対策!AA21=0,U144&CHAR(10),\"\")","v":"　排水口を広く深くすると、短時間で排水できます。排水路の増水で逆流することがあるので、水位が低下してから排水します。\n"},{"$f":"IF(大雨対策!AA22=0,U146&CHAR(10),\"\")","v":"　排水口が増えれば早く排水でき、水の流れもスムーズになります。各方向から排水できれば、畑全体の水が早く抜けます。\n"},{"$f":"IF(大雨対策!AA23=0,U148&CHAR(10),\"\")","v":"　用水路が増水すると止めてある入水口から越水します。止水板を高くしたり土のうを積んで、越水を防止します。\n"}]
[null,null,null,"大雨コメント","ポイント",null,{"$f":"大雨対策!J11","v":0},null,null,"実施した対策数",null,{"$f":"大雨対策!J12","v":0},null,null,null,null,null,null,null,"準備 改善余地",{"$f":"U151","v":"(畑の準備からの未改善事項)　　な し"}]
[]
[null,null,null,null,null,{"$f":"U119","v":"　大雨対策としては不十分です。大雨ではできる限りはやく雨水を排水するため、溝・排水口は、流れやすくする必要があります。畑の準備で十分対策していても、今一度点検しておきましょう。"},null,null,null,null,null,null,null,null,null,null,null,null,null,null,"9以下","対策が不十分"]
[null,null,null,null,null,null,null,null,null,null,null,null,null,null,null,null,null,null,null,null,"　大雨対策としては不十分です。大雨ではできる限りはやく雨水を排水するため、溝・排水口は、流れやすくする必要があります。畑の準備で十分対策していても、今一度点検しておきましょう。"]
[]
[]
[null,null,null,null,null,null,null,null,null,null,null,null,null,null,null,null,null,null,null,null,"10～20","一定の対策は実施"]
[null,null,null,null,null,null,null,null,null,null,null,null,null,null,null,null,null,null,null,null,"　一定対策は実施されていますが、十分とはいえません。大雨後、畑がどうなっているか、どこに水がたまっているか、その原因は何か確認しましょう。溝も修復などメンテナンスが必要になります。"]
[null,null,null,null,null,{"$f":"U121&CHAR(10)&U122","v":"　溝は土なので、最初にきちんとしていても時間の経過で崩れたり、つまったりします。溝さらえや除草を行いましょう。\n　溝の交点を広くするだけで、水は流れやすくなります。交点が狭いと流れが悪く、土がたまる原因になります。\n　排水口付近は畑全体の水が集まります。溝を広くすることで早く水が集まるようになり、排水口からの流れも早めます。\n　排水口を広く深くすると、短時間で排水できます。排水路の増水で逆流することがあるので、水位が低下してから排水します。\n　排水口が増えれば早く排水でき、水の流れもスムーズになります。各方向から排水できれば、畑全体の水が早く抜けます。\n　用水路が増水すると止めてある入水口から越水します。止水板を高くしたり土のうを積んで、越水を防止します。\n\n(畑の準備からの未改善事項)　　な し"}]
[]
[null,null,null,null,null,null,null,null,null,null,null,null,null,null,null,null,null,null,null,null,"21以上","基本的な対策はできている"]
[null,null,null,null,null,null,null,null,null,null,null,null,null,null,null,null,null,null,null,null,"　いろいろな対策が実施されています。しかし、大雨の程度はどれくらいかわかりません。大雨を想定して実施可能な対策は他にないか、できるだけ作物に被害が出ないよう努めてください。"]
[]
[]
[null,null,null,null,null,null,null,null,null,null,null,null,null,null,null,null,null,null,null,null,"流れ悪い部分の修復"]
[null,null,null,null,null,null,null,null,null,null,null,null,null,null,null,null,null,null,null,null,"　溝は土なので、最初にきちんとしていても時間の経過で崩れたり、つまったりします。溝さらえや除草を行いましょう。"]
[null,null,null,null,null,null,null,null,null,null,null,null,null,null,null,null,null,null,null,null,"溝の交点を広く"]
[null,null,null,null,null,null,null,null,null,null,null,null,null,null,null,null,null,null,null,null,"　溝の交点を広くするだけで、水は流れやすくなります。交点が狭いと流れが悪く、土がたまる原因になります。"]
[null,null,null,null,null,null,null,null,null,null,null,null,null,null,null,null,null,null,null,null,"排水口近くの溝幅を広く"]
[null,null,null,null,null,null,null,null,null,null,null,null,null,null,null,null,null,null,null,null,"　排水口付近は畑全体の水が集まります。溝を広くすることで早く水が集まるようになり、排水口からの流れも早めます。"]
[]
[null,null,null,null,null,null,null,null,null,null,null,null,null,null,null,null,null,null,null,null,"排水口の拡幅"]
[null,null,null,null,null,null,null,null,null,null,null,null,null,null,null,null,null,null,null,null,"　排水口を広く深くすると、短時間で排水できます。排水路の増水で逆流することがあるので、水位が低下してから排水します。"]
[null,null,null,null,"畑の準備",{"$f":"IF(畑の準備!J21<=10,'診　断'!V124,IF(畑の準備!J21>21,'診　断'!V14,'診　断'!V10))","v":"対策が不十分"},null,null,null,null,"梅雨対策",{"$f":"IF(COUNTA(梅雨対策!H5:H8)=0,\"未入力\",IF(梅雨対策!J13<=2,'診　断'!V70,IF(梅雨対策!J13>10,'診　断'!V78,'診　断'!V74)))","v":"未入力"},null,null,null,null,null,null,null,null,"複数の排水口を設置"]
[null,null,null,null,null,null,null,null,null,null,null,null,null,null,null,null,null,null,null,null,"　排水口が増えれば早く排水でき、水の流れもスムーズになります。各方向から排水できれば、畑全体の水が早く抜けます。"]
[null,null,null,null,"大雨対策",{"$f":"IF(G122<=9,V124,IF(G122>=21,V132,V128))","v":"対策が不十分"},null,null,null,null,null,null,null,null,null,null,null,null,null,null,"入水口の越水防止"]
[null,null,null,null,null,null,null,null,null,null,null,null,null,null,null,null,null,null,null,null,"　用水路が増水すると止めてある入水口から越水します。止水板を高くしたり土のうを積んで、越水を防止します。"]
[]
[null,null,null,null,null,null,null,null,null,null,null,null,null,null,null,null,null,null,null,null,"畑の準備で改善又は改善余地"]
[null,null,null,null,null,null,null,null,null,null,null,null,null,null,null,null,null,null,null,null,{"$f":"\"(畑の準備からの未改善事項)\"&大雨対策!AC47","v":"(畑の準備からの未改善事項)　　な し"}]
[null,null,null,null,null,null,null,null,null,null,null,null,null,null,null,null,null,null,null,{"$f":"IF(Y152=\"\",\"\",Y152)","v":""},"額縁溝",{"$f":"IF(畑の準備!J5<=0,畑の準備!I5,\"\")","v":""},{"$f":"IF(畑の準備!J5<=0,畑の準備!J5,\"\")","v":""},{"$f":"IF(V152<>\"\",1,\"\")","v":""},{"$f":"IF(X152<>\"\",COUNT($X$152:$X152),\"\")","v":""},{"$f":"IF(W152<=0,\"(\"&U152&\")\"&V152&\" → \"&AA152&\"、\"&AC152,\"\")","v":""},{"$f":"IF(W152<=0,\"谷上げ\",\"\")","v":""},{"$f":"IF(W152<=0,AE152,\"\")","v":""},{"$f":"IF(W152<=0,\"溝掘り機\",\"\")","v":""},{"$f":"IF(W152<=0,AF152,\"\")","v":""},5,7,{"$f":"IF(AND(大雨対策!Y31<>\"\",大雨対策!Z31=\"\"),U152,\"\")","v":"額縁溝"}]
[null,null,null,null,null,null,null,null,null,null,null,null,null,null,null,null,null,null,null,{"$f":"IF(Y153=\"\",\"\",Y153)","v":""},"溝・額縁接続",{"$f":"IF(畑の準備!J7<=0,畑の準備!I7,\"\")","v":""},{"$f":"IF(畑の準備!J7<=0,畑の準備!J7,\"\")","v":""},"",{"$f":"IF(X153<>\"\",COUNT($X$152:$X153),\"\")","v":""},{"$f":"IF(W153<=0,\"(\"&U153&\")\"&V153&\" → \"&AA153&\"、\"&AC153,\"\")","v":""},{"$f":"IF(W153<=0,\"溝接続\",\"\")","v":""},{"$f":"IF(W153<=0,AE153,\"\")","v":""},{"$f":"IF(W153<=0,\"交点整形\",\"\")","v":""},"",3,5,{"$f":"IF(AND(大雨対策!Y33<>\"\",大雨対策!Z33=\"\"),U153,\"\")","v":"溝・額縁接続"}]
[null,null,null,null,null,null,null,null,null,null,null,null,null,null,null,null,null,null,null,"","法面下の溝",{"$f":"IF(畑の準備!J9<=0,畑の準備!I9,\"\")","v":""},{"$f":"IF(畑の準備!J9<=0,畑の準備!J9,\"\")","v":""},"",{"$f":"IF(X154<>\"\",COUNT($X$152:$X154),\"\")","v":""},"",{"$f":"IF(W154<=0,\"額縁外に溝\",\"\")","v":""},"",{"$f":"IF(W154<=0,\"恒久的溝\",\"\")","v":""},"",5,10,{"$f":"IF(AND(大雨対策!Y35<>\"\",大雨対策!Z35=\"\"),U154,\"\")","v":"法面下の溝"}]
[null,null,null,null,null,null,null,null,null,null,null,null,null,null,null,null,null,null,null,"","排水口の拡大",{"$f":"IF(畑の準備!J11<=0,畑の準備!I11,\"\")","v":""},{"$f":"IF(畑の準備!J11<=0,畑の準備!J11,\"\")","v":""},"",{"$f":"IF(X155<>\"\",COUNT($X$152:$X155),\"\")","v":""},"",{"$f":"IF(W155<=0,\"排水口拡張\",\"\")","v":""},"",{"$f":"IF(W155<=0,\"付近溝拡幅\",\"\")","v":""},"",3,5]
[null,null,null,null,null,null,null,null,null,null,null,null,null,null,null,null,null,null,null,"","複数の排水口",{"$f":"IF(畑の準備!J13<=0,畑の準備!I13,\"\")","v":""},{"$f":"IF(畑の準備!J13<=0,畑の準備!J13,\"\")","v":""},"",{"$f":"IF(X156<>\"\",COUNT($X$152:$X156),\"\")","v":""},{"$f":"IF(W156<=0,\"(\"&U156&\")\"&V156&\" → \"&AA156,\"\")","v":""},{"$f":"IF(W156<=0,\"排水口を増設\",\"\")","v":""},"",{"$f":"IF(W156<=0,\"3か所以上\",\"\")","v":""},"",3,5]
[null,null,null,null,null,null,null,null,null,null,null,null,null,null,null,null,null,null,null,"","長いうねの切断",{"$f":"IF(畑の準備!J15<=0,畑の準備!I15,\"\")","v":""},{"$f":"IF(畑の準備!J15<=0,畑の準備!J15,\"\")","v":""},"",{"$f":"IF(X157<>\"\",COUNT($X$152:$X157),\"\")","v":""},{"$f":"IF(W157<=0,\"(\"&U157&\")\"&V157&\" → \"&AA157,\"\")","v":""},{"$f":"IF(W157<=0,\"うね切断・直交溝設置\",\"\")","v":""},"",{"$f":"IF(W157<=0,\"切断25m未満\",\"\")","v":""},"",5,7]
[null,null,null,null,null,null,null,null,null,null,null,null,null,null,null,null,null,null,null,"","うね間以外の溝",{"$f":"IF(畑の準備!J17<=0,畑の準備!I17,\"\")","v":""},{"$f":"IF(畑の準備!J17<=0,畑の準備!J17,\"\")","v":""},"",{"$f":"IF(X158<>\"\",COUNT($X$152:$X158),\"\")","v":""},{"$f":"IF(W158<=0,\"(\"&U158&\")\"&V158&\" → \"&AA158,\"\")","v":""},{"$f":"IF(W158<=0,\"新たにうねと平行の溝設置\",\"\")","v":""},"",{"$f":"IF(W158<=0,\"溝間隔10m未満\",\"\")","v":""},"",5,7]
[null,null,null,null,null,null,null,null,null,null,null,null,null,null,null,null,null,null,null,"","うねの形",{"$f":"IF(畑の準備!J19<=0,畑の準備!I19,\"\")","v":""},{"$f":"IF(畑の準備!J19<=0,畑の準備!J19,\"\")","v":""},"",{"$f":"IF(X159<>\"\",COUNT($X$152:$X159),\"\")","v":""},"",{"$f":"IF(W159<=0,\"かまぼこ型\",\"\")","v":""},"",{"$f":"IF(W159<=0,\"かまぼこ型高うね\",\"\")","v":""},"",5,7]
[null,null,null,null,null,null,null,null,null,null,null,null,null,null,null,null,null,null,null,null,null,null,null,{"$f":"COUNT(X152:X159)","v":0}]
[null,null,null,null,null,null,null,null,null,null,null,null,null,null,null,null,null,null,null,null,null,null,null,"改善余地数↑"]

{"sheet":"かん水","index":7,"n_rows":23,"n_cols":29,"rows_kept":23,"cut":false,"hidden":true,"merged":[]}
[]
[null,"かん水支援システム"]
[null,null,"No","時　期",null,"畑・天候の状況",null,"Ｐ",null,null,null,null,null,null,null,null,null,null,null,null,"Ｐ",null,null,null,"Ｐ",null,null,null,"Ｐ"]
[null,"直播・移植期",11,"うね立時水分",null,2,{"$f":"IF(F4=\"\",\"\",VLOOKUP($F4,$S$4:$U$7,2,0))","v":"乾燥"},{"$f":"VLOOKUP($F4,$S$4:$U$7,3,0)","v":0},null,null,null,null,null,null,null,null,null,11,0,"説明",0,12,0,"説明",0,13,0,"説明",0]
[null,null,12,"直播・移植後",null,1,{"$f":"IF(F5=\"\",\"\",VLOOKUP($F5,$W$4:$Y$7,2,0))","v":"移植後無かん水"},{"$f":"VLOOKUP($F5,$W$4:$Y$7,3,0)","v":-3},null,null,null,null,null,null,null,null,null,null,1,"過湿",-5,null,1,"移植後無かん水",-3,null,1,"見ていない",-5]
[null,null,13,"初期生育期",null,3,{"$f":"IF(F6=\"\",\"\",VLOOKUP($F6,$AA$4:$AC$8,2,0))","v":"1週間雨なし"},{"$f":"VLOOKUP($F6,$AA$4:$AC$8,3,0)","v":2},null,null,null,null,null,null,null,null,null,null,2,"乾燥",0,null,2,"乾いたうね直播",3,null,2,"苗立不揃い",0]
[null,null,null,null,null,null,"Ｐ計",{"$f":"SUM(H4:H6)","v":-1},null,null,null,null,null,null,null,null,null,null,3,"適湿",5,null,3,"発芽･活着問題なし",5,null,3,"1週間雨なし",2]
[null,null,null,null,null,null,null,null,null,null,null,null,null,null,null,null,null,null,4,null,null,null,4,null,null,null,4,"適度な雨",7]
[null,"梅雨期",21,"梅雨前半",null,1,{"$f":"IF(F9=\"\",\"\",VLOOKUP($F9,$S$9:$U$12,2,0))","v":"うね間も乾燥"},{"$f":"VLOOKUP($F9,$S$9:$U$12,3,0)","v":-2},null,null,null,null,null,null,null,null,null,21,0,"説明",0,22,0,"説明",0]
[null,null,22,"梅雨後半",null,1,{"$f":"IF(F10=\"\",\"\",VLOOKUP($F10,$W$9:$Y$12,2,0))","v":"カラ梅雨・少雨"},{"$f":"VLOOKUP($F10,$W$9:$Y$12,3,0)","v":0},null,null,null,null,null,null,null,null,null,null,1,"うね間も乾燥",-2,null,1,"カラ梅雨・少雨",0]
[null,null,null,null,null,null,null,null,null,null,null,null,null,null,null,null,null,null,2,"著しい少雨",0,null,2,"乾燥と大雨の激変",2]
[null,"夏 着莢機",31,"梅雨明け10日",null,1,{"$f":"IF(F12=\"\",\"\",VLOOKUP($F12,$S$14:$U$18,2,0))","v":"10日以上雨なし"},{"$f":"VLOOKUP($F12,$S$14:$U$18,3,0)","v":-3},null,null,null,null,null,null,null,null,null,null,3,"適度な雨",5,null,3,"適度な雨",7]
[null,null,32,"開花初期(8/上)",null,1,{"$f":"IF(F13=\"\",\"\",VLOOKUP($F13,$W$14:$Y$18,2,0))","v":"雨なく高温乾燥"},{"$f":"VLOOKUP($F13,$W$14:$Y$18,3,0)","v":-3},null,null,null,null,null,null,null,null,null,null,4,null,null,null,4]
[null,null,33,"盛夏(8/中-8/下)",null,2,{"$f":"IF(F14=\"\",\"\",VLOOKUP($F14,$AA$14:$AC$18,2,0))","v":"高温･少雨"},{"$f":"VLOOKUP($F14,$AA$14:$AC$18,3,0)","v":0},null,null,null,null,null,null,null,null,null,31,0,"説明",0,32,0,"説明",0,33,0,"説明",0]
[null,null,null,null,null,null,null,null,null,null,null,null,null,null,null,null,null,null,1,"10日以上雨なし",-3,null,1,"雨なく高温乾燥",-3,null,1,"乾ききった時期あり",-5]
[null,"秋 莢肥大期",41,"9/上旬 莢伸長期",null,null,null,null,null,null,null,null,null,null,null,null,null,null,2,"小雨あったが乾燥",0,null,2,"梅雨明け後小雨のみ",0,null,2,"高温･少雨",0]
[null,null,42,"9/中下旬 粒肥大期",null,null,null,null,null,null,null,null,null,null,null,null,null,null,3,"5日程度で雨",2,null,3,"雨･乾燥ともあり",5,null,3,"雨･乾燥ともあり",5]
[null,null,43,"10月 粒充実期",null,null,null,null,null,null,null,null,null,null,null,null,null,null,4,"5日以内にかん水",5,null,4,"乾かず適度な雨",7,null,4,"乾かず適度な雨",7]
[null,null,null,null,null,null,null,null,null,null,null,null,null,null,null,null,null,41,0,"説明",0,32,0,"説明",null,33,0,"説明",0]
[null,null,null,null,null,null,null,null,null,null,null,null,null,null,null,null,null,null,1,"高温乾燥の継続",-3,null,1,"少雨で夏並み高温",-3,null,1,"雨なく夏並み高温",-3]
[null,null,null,null,null,null,null,null,null,null,null,null,null,null,null,null,null,null,2,"少雨・土は白い",0,null,2,"雨間隔7日以上",0,null,2,"雨間隔10日以上",0]
[null,null,null,null,null,null,null,null,null,null,null,null,null,null,null,null,null,null,3,"雨間隔1週間",3,null,3,"乾かず適度な雨",5,null,3,"乾かず適度な雨",5]
[null,null,null,null,null,null,null,null,null,null,null,null,null,null,null,null,null,null,4,"乾かず適度な雨",7,null,4,null,null,null,4]